bitfinex-derivatives/quotes_ETHF0:USTF0_20250624
["timestamp","ask_amount","ask_price","bid_price","bid_amount"]
[1750724563673,3.4014,2407.9,2407.3,7.8515957]
[1750724563874,3.2078,2407.7,2407.1,0.099]
[1750724564084,0.8303,2407.2,2407.1,0.099]
[1750724564973,2.2108,2407.2,2407.1,0.099]
[1750724565379,1.3805,2407.2,2407.1,0.099]
[1750724565579,1.3805,2407.2,2407.1,0.92934]
[1750724565787,2.0157,2407.3,2407.1,8.7809157]
[1750724566083,2.0157,2407.3,2407.2,0.8303]
[1750724566280,2.0157,2407.3,2407.1,5.5731057]
[1750724566480,0.83021,2407.5,2407.2,0.8303]
[1750724566880,1.3805,2407.4,2407.2,0.8303]
[1750724567285,1.3805,2407.4,2407.3,0.83027]
[1750724567783,1.3805,2407.4,2407.2,0.83028]
[1750724569085,1.3805,2407.4,2407.3,0.83027]
[1750724571388,1.3805,2407.4,2407.2,0.0637515]
[1750724571585,1.3805,2407.4,2407.3,0.83027]
[1750724571886,1.3805,2407.4,2407.2,0.0637515]
[1750724572085,0.83027,2407.3,2407.2,0.0637515]
[1750724574687,9.03807,2407.3,2407.2,0.0637515]
[1750724574891,0.83048,2406.7,2406.4,4.03836]
[1750724575091,0.83048,2406.7,2406.4,3.2078]
[1750724575288,1.4492,2406.6,2406.4,3.2078]
[1750724575483,0.83054,2406.5,2406.4,3.2078]
[1750724575689,0.83058,2406.4,2406.1,3.2078]
[1750724575884,2.27978,2406.4,2406.1,4.03847]
[1750724576487,1.4492,2406.4,2406.1,3.2078]
[1750724576688,1.0072,2406.3,2406.1,3.2078]
[1750724576888,1.3391,2406.2,2406.1,3.2078]
[1750724577492,1.3391,2406.2,2406.1,4.03848]
[1750724577695,0.9908,2406.6,2406.1,3.2078]
[1750724577895,0.9908,2406.6,2406.4,0.83058]
[1750724578391,0.9908,2406.6,2406.4,0.83056]
[1750724578599,2.3299,2406.6,2406.4,0.83056]
[1750724578794,3.16041,2406.6,2406.3,0.83059]
[1750724579901,3.16041,2406.6,2406.4,0.83057]
[1750724580598,3.16041,2406.6,2406.3,0.83059]
[1750724580796,2.3299,2406.6,2406.1,9.1637957]
[1750724580989,0.83035,2407.1,2406.4,9.9280057]
[1750724581191,0.83035,2407.1,2406.7,4.03826]
[1750724581192,3.2078,2407.1,2406.7,4.03826]
[1750724581498,0.83044,2406.9,2406.7,3.2078]
[1750724581693,0.8305,2406.7,2406.5,9.3702]
[1750724581897,3.2078,2407.1,2406.6,3.2078]
[1750724582099,4.5291,2407.3,2406.9,3.2078]
[1750724582299,5.35939,2407.3,2407.0,0.83034]
[1750724582501,2.07585,2407.1,2405.9,10.5858]
[1750724582690,3.2078,2406.6,2405.9,10.5858]
[1750724582894,0.83072,2406.0,2405.9,7.378]
[1750724583202,3.2078,2406.3,2405.6,7.378]
[1750724583396,3.2078,2406.3,2406.0,4.6437957]
[1750724583601,3.3886,2406.5,2406.0,4.6437957]
[1750724583602,0.83059,2406.4,2406.0,5.4744957]
[1750724583799,4.21916,2406.5,2406.1,0.83068]
[1750724584102,4.21916,2406.5,2406.0,4.6437957]
[1750724584103,2.28318,2406.4,2406.0,5.4744857]
[1750724584504,1.936,2406.5,2406.1,3.2078]
[1750724584701,3.2078,2406.6,2406.4,0.83055]
[1750724585003,2.0159,2407.1,2406.5,3.2078]
[1750724585190,2.44949593,2407.7,2406.9,4.6437957]
[1750724585191,2.28287,2407.3,2406.9,4.6437957]
[1750724585390,1.4526,2407.3,2406.9,12.0217957]
[1750724585599,1.4526,2407.3,2406.9,12.8521757]
[1750724585799,2.28288,2407.3,2407.0,0.83037]
[1750724586000,1.4526,2407.3,2407.1,3.2078]
[1750724586202,2.28287,2407.3,2407.1,3.2078]
[1750724586404,0.83025,2407.4,2407.1,3.2078]
[1750724586705,0.83022,2407.5,2407.1,4.03813]
[1750724587204,2.3982,2407.6,2407.1,3.2078]
[1750724587407,2.3982,2407.6,2407.0,0.83035]
[1750724587800,2.3982,2407.6,2407.0,2.14245]
[1750724588106,0.83026,2407.4,2407.0,2.14245]
[1750724588495,0.83026,2407.4,2407.1,0.83034]
[1750724589106,0.83028,2407.3,2407.0,2.14246]
[1750724589297,0.83028,2407.3,2407.0,1.3121]
[1750724589701,0.83028,2407.3,2407.0,2.14246]
[1750724590003,0.83025,2407.4,2407.1,0.83033]
[1750724590600,0.83028,2407.3,2407.0,1.3121]
[1750724590911,0.83028,2407.3,2407.0,0.83036]
[1750724591305,0.83028,2407.3,2406.9,12.8521857]
[1750724591707,0.83028,2407.3,2407.0,0.83037]
[1750724592009,0.8303,2407.2,2406.9,12.8521757]
[1750724592510,0.8303,2407.2,2406.8,5.5325]
[1750724592511,0.83037,2407.0,2406.8,0.996]
[1750724592808,0.83044,2406.8,2406.7,0.0637515]
[1750724593014,0.83044,2406.8,2406.3,47.848]
[1750724593015,0.83058,2406.4,2406.3,7.348]
[1750724593507,1.95546023,2406.4,2406.3,7.348]
[1750724593703,1.12488023,2406.4,2406.3,10.5558]
[1750724593903,0.83049,2406.7,2406.4,0.83057]
[1750724594202,1.95535186,2406.6,2406.3,7.348]
[1750724594403,1.12482186,2406.5,2406.3,8.17861]
[1750724594610,0.83049,2406.7,2406.4,0.83058]
[1750724594908,1.12477355,2406.6,2406.4,0.83057]
[1750724595100,0.8305,2406.7,2406.4,0.83057]
[1750724595301,1.12453353,2406.6,2406.4,0.83057]
[1750724595502,0.8305,2406.7,2406.4,0.83057]
[1750724595701,1.12455003,2406.6,2406.4,0.83057]
[1750724596001,0.83045,2406.8,2406.5,0.83053]
[1750724596201,1.12455382,2406.7,2406.5,0.83053]
[1750724596401,0.83045,2406.8,2406.5,0.83053]
[1750724596610,4.6525,2406.9,2406.4,1.87286]
[1750724596611,1.95503694,2406.7,2406.4,1.87286]
[1750724596809,1.12456694,2406.6,2406.4,1.87286]
[1750724597112,3.2078,2407.2,2406.5,4.6437957]
[1750724597409,1.95513353,2407.1,2406.8,0.83043]
[1750724597706,1.95515353,2407.0,2406.8,7.348]
[1750724598008,1.12477353,2406.9,2406.8,7.348]
[1750724598403,1.95517353,2406.9,2406.8,7.348]
[1750724600308,1.12477353,2406.9,2406.8,7.348]
[1750724600508,1.12477353,2406.9,2406.8,8.17844]
[1750724600812,0.83034,2407.1,2406.8,8.17842]
[1750724601010,1.12346767,2407.0,2406.9,0.8304]
[1750724601508,3.80029593,2407.6,2407.3,0.83023]
[1750724601700,3.46649593,2407.8,2407.4,0.83022]
[1750724601904,0.8302,2407.5,2407.3,8.17825]
[1750724602313,3.2078,2407.6,2406.9,7.348]
[1750724602502,2.19616,2407.4,2407.1,0.83031]
[1750724602702,0.83027,2407.3,2407.1,0.83031]
[1750724602909,0.83027,2407.3,2407.0,0.83035]
[1750724603411,0.83031,2407.2,2406.9,8.17839]
[1750724603715,0.83034,2407.1,2406.8,1.89592]
[1750724603915,4.1936,2407.3,2406.9,7.348]
[1750724604212,1.3659,2407.0,2406.7,4.03825]
[1750724604406,1.3659,2407.0,2406.8,8.17843]
[1750724604810,1.3659,2407.0,2406.9,0.8304]
[1750724605216,1.3659,2407.0,2406.8,8.17842]
[1750724605411,1.3659,2407.0,2406.9,0.8304]
[1750724606310,1.3659,2407.0,2406.8,7.348]
[1750724606311,6.08017,2407.3,2407.0,0.83034]
[1750724606614,7.52437,2407.3,2407.0,0.83034]
[1750724606816,7.52437,2407.3,2406.8,7.348]
[1750724606817,7.52437,2407.3,2407.1,0.83033]
[1750724607024,7.52437,2407.3,2407.0,0.83035]
[1750724607409,7.52437,2407.3,2406.8,7.348]
[1750724607410,4.652,2407.3,2407.2,0.8303]
[1750724607620,2.79783,2407.7,2407.4,0.83022]
[1750724607810,4.15323,2407.7,2407.4,0.83022]
[1750724608317,0.83017,2407.6,2407.3,0.83024]
[1750724608512,1.3554,2407.5,2407.4,0.83023]
[1750724611009,2.79785,2407.7,2407.2,10.5558]
[1750724611010,1.9677,2407.7,2407.2,10.5558]
[1750724611204,1.9677,2407.7,2407.6,0.83016]
[1750724611416,3.3886,2407.7,2407.6,0.83016]
[1750724611608,3.3886,2407.7,2407.3,5.6641957]
[1750724611809,0.83016,2407.6,2407.3,0.83025]
[1750724612009,1.4209,2407.5,2407.3,0.83025]
[1750724612311,2.25111,2407.5,2407.3,0.83025]
[1750724612507,0.83025,2407.4,2407.2,10.5558]
[1750724612710,1.4209,2407.3,2406.9,4.2282]
[1750724612913,1.4209,2407.3,2407.2,0.8303]
[1750724613914,3.2078,2407.5,2407.4,0.83023]
[1750724614616,4.32631889,2407.5,2407.4,0.83023]
[1750724614914,3.2078,2407.5,2407.4,0.83023]
[1750724616520,3.3648,2407.7,2407.5,0.83018]
[1750724616712,3.3648,2407.7,2407.6,0.83016]
[1750724616915,4.483141,2407.7,2407.6,0.83016]
[1750724617419,4.483141,2407.7,2407.5,0.83017]
[1750724617623,3.2078,2408.0,2407.9,0.83006]
[1750724617825,0.8301,2407.8,2407.6,8.17715]
[1750724618120,2.28448,2407.9,2407.6,8.17715]
[1750724618317,0.83009,2407.8,2407.6,7.347]
[1750724618522,1.4544,2407.7,2407.6,7.347]
[1750724618918,1.4544,2407.7,2407.6,8.17716]
[1750724619719,3.2078,2408.0,2407.9,0.83006]
[1750724619921,4.32360102,2408.0,2407.8,0.83008]
[1750724620119,1.4014,2407.9,2407.8,0.83008]
[1750724620723,1.4014,2407.9,2407.7,0.83011]
[1750724621417,1.4014,2407.9,2407.8,0.83009]
[1750724621717,1.4014,2407.9,2407.7,0.83011]
[1750724622022,1.4014,2407.9,2407.8,0.83009]
[1750724622414,1.4014,2407.9,2407.7,0.83011]
[1750724622728,1.4014,2407.9,2407.7,0.83012]
[1750724622918,1.4014,2407.9,2407.6,7.347]
[1750724622919,2.23147,2407.9,2407.6,8.17715]
[1750724623319,1.4014,2407.9,2407.7,0.83012]
[1750724623720,2.23146,2407.9,2407.6,8.17714]
[1750724624023,0.83009,2407.8,2407.6,7.347]
[1750724624219,1.4002,2407.7,2407.6,8.17716]
[1750724624619,1.4002,2407.7,2407.6,7.347]
[1750724625628,2.23033,2407.7,2407.6,7.347]
[1750724626220,1.4002,2407.7,2407.3,44.0078]
[1750724626418,1.4002,2407.7,2407.4,7.316]
[1750724626625,1.0547,2407.6,2407.4,7.316]
[1750724627515,1.4062,2407.5,2407.4,7.316]
[1750724627921,1.4062,2407.5,2407.4,8.14622]
[1750724630727,2.2364,2407.5,2407.4,7.316]
[1750724631126,3.35180386,2407.5,2407.4,7.316]
[1750724631624,3.3517802,2407.5,2407.4,7.316]
[1750724633419,2.5215802,2407.5,2407.1,0.83031]
[1750724633621,0.83029,2407.3,2407.0,7.316]
[1750724633820,1.3585,2407.2,2407.1,0.83033]
[1750724634623,3.2078,2407.7,2407.6,0.83016]
[1750724634820,4.32315535,2407.7,2407.6,0.8939115]
[1750724635024,1.11535535,2407.7,2407.6,8.7455072]
[1750724635329,3.2078,2408.2,2408.0,0.83001]
[1750724635529,1.11549227,2408.1,2408.0,0.83001]
[1750724635728,2.45829227,2408.1,2407.9,0.83004]
[1750724635925,1.11549227,2408.0,2407.9,0.83004]
[1750724636120,3.2078,2408.2,2408.1,0.82999]
[1750724636319,1.11557048,2408.2,2408.1,0.82999]
[1750724636526,2.17263,2408.6,2408.2,0.82996]
[1750724636723,1.94577904,2408.5,2408.2,0.82994]
[1750724636919,2.45872904,2408.4,2408.2,0.82994]
[1750724637126,2.45872904,2408.4,2408.1,0.82997]
[1750724637127,2.17271,2408.4,2408.1,0.82997]
[1750724637335,1.11533017,2408.3,2408.1,0.82997]
[1750724637629,2.45797736,2408.2,2407.9,7.315]
[1750724637932,1.11517736,2408.1,2407.9,7.315]
[1750724638228,3.28826825,2408.0,2407.9,7.315]
[1750724640432,3.28826825,2408.0,2407.7,0.83011]
[1750724640632,2.17332,2408.0,2407.7,0.83011]
[1750724640833,0.83006,2407.9,2407.6,8.2088915]
[1750724641035,1.3223,2407.8,2407.6,8.2088915]
[1750724641232,1.3223,2407.8,2407.6,0.0637515]
[1750724641534,4.03793,2407.7,2407.6,0.0637515]
[1750724641733,5.11143,2407.7,2407.6,0.0637515]
[1750724641927,6.22018664,2407.7,2407.6,0.0637515]
[1750724644533,4.31655664,2407.7,2407.6,0.0637515]
[1750724644838,5.14668664,2407.7,2407.6,0.0637515]
[1750724645132,6.48758664,2407.7,2407.6,0.0637515]
[1750724645734,3.27978664,2407.7,2407.6,0.0637515]
[1750724646337,6.48758664,2407.7,2407.6,0.0637515]
[1750724647440,3.27978664,2407.7,2407.6,0.0637515]
[1750724647933,6.48758664,2407.7,2407.6,0.0637515]
[1750724648135,0.83029,2407.3,2407.1,3.2078]
[1750724648342,2.0978,2407.6,2407.1,3.2078]
[1750724648542,0.8303,2407.2,2407.1,3.2078]
[1750724649338,4.31850606,2407.4,2406.9,7.315]
[1750724649544,0.83036,2407.1,2406.9,7.315]
[1750724650146,0.83036,2407.1,2406.9,8.1454]
[1750724650348,0.83032,2407.2,2406.9,8.1454]
[1750724650647,3.2078,2407.4,2406.9,7.315]
[1750724650648,1.4182,2407.1,2406.9,7.315]
[1750724650846,0.83037,2407.0,2406.9,7.315]
[1750724651243,2.07593,2407.0,2405.7,7.82584662]
[1750724651449,0.83063,2406.3,2406.0,7.283]
[1750724651747,0.8307,2406.1,2405.8,1.9974]
[1750724651951,0.83075,2405.9,2405.7,7.283]
[1750724652241,2.4915,2406.2,2405.7,7.283]
[1750724652242,2.4062,2406.0,2405.7,7.283]
[1750724652450,2.4062,2406.0,2405.3,41.8174]
[1750724652656,0.83089,2405.5,2405.3,40.8]
[1750724653154,3.2078,2405.8,2405.3,40.8]
[1750724653155,0.83092,2405.4,2405.3,40.8]
[1750724653349,1.4549,2405.4,2405.2,7.284]
[1750724653550,4.03861,2405.8,2405.3,0.83096]
[1750724653748,2.28573,2405.7,2405.3,0.83096]
[1750724654153,1.4549,2405.7,2405.2,7.284]
[1750724654344,1.4549,2405.7,2405.3,0.83088]
[1750724654551,1.4549,2405.7,2405.4,0.83085]
[1750724654752,1.4549,2405.7,2405.2,9.6955]
[1750724654948,1.4549,2405.7,2405.2,8.3336]
[1750724655355,2.28567,2405.7,2405.3,0.8309]
[1750724655653,1.4549,2405.7,2405.4,0.83085]
[1750724655853,2.28566,2405.7,2405.3,0.83088]
[1750724656053,1.4549,2405.7,2405.4,0.83084]
[1750724656855,2.28564,2405.7,2405.4,0.83084]
[1750724657060,4.6627,2405.7,2405.4,0.83084]
[1750724657259,1.4549,2405.7,2405.5,0.8308]
[1750724657448,4.6627,2405.7,2405.5,0.8308]
[1750724657653,1.0733,2406.2,2405.6,15.1365957]
[1750724657852,3.2078,2406.4,2405.9,7.8515957]
[1750724657853,1.0744,2406.4,2405.9,7.8515957]
[1750724658054,3.2078,2406.8,2405.9,4.6437957]
[1750724658055,0.83055,2406.3,2405.9,4.6437957]
[1750724658264,1.4127,2406.3,2406.1,0.83059]
[1750724658447,1.0744,2406.7,2406.3,0.83053]
[1750724658652,3.2078,2406.4,2406.1,7.286]
[1750724658956,1.4127,2406.3,2405.9,7.286]
[1750724659259,0.83058,2406.2,2405.9,7.286]
[1750724659559,1.4156,2406.1,2405.9,7.286]
[1750724659952,1.4156,2406.1,2405.9,0.83067]
[1750724660153,1.4156,2406.1,2405.8,0.83069]
[1750724660358,1.4156,2406.1,2405.8,0.8307]
[1750724660757,1.4156,2406.1,2405.8,0.83067]
[1750724661360,4.6234,2406.1,2405.8,0.83067]
[1750724661764,4.6234,2406.1,2405.9,0.83067]
[1750724662060,1.4156,2406.1,2405.9,0.83065]
[1750724662862,1.4156,2406.1,2406.0,0.83063]
[1750724663264,1.4156,2406.1,2405.9,0.83065]
[1750724663864,1.0744,2406.2,2406.1,0.8306]
[1750724664057,1.4289,2406.4,2406.1,4.0384]
[1750724664466,1.4289,2406.4,2406.1,3.2078]
[1750724664955,1.4289,2406.4,2406.3,0.83053]
[1750724665156,0.83038,2406.8,2406.5,0.83046]
[1750724665366,1.3176,2406.7,2406.5,0.83046]
[1750724666067,1.0406,2406.9,2406.7,0.83039]
[1750724666263,1.0406,2406.9,2406.5,3.2078]
[1750724666467,2.3582,2406.9,2406.8,0.83036]
[1750724666959,0.83027,2407.1,2406.7,4.6437957]
[1750724667164,1.3176,2407.1,2407.0,0.83029]
[1750724667361,1.3176,2407.5,2407.3,0.83016]
[1750724667558,1.3176,2407.5,2407.3,3.2078]
[1750724667764,2.14773,2407.5,2407.3,3.2078]
[1750724668072,1.3176,2407.5,2407.3,3.2078]
[1750724668263,2.14772,2407.5,2407.3,3.2078]
[1750724668464,1.3176,2407.5,2407.3,3.2078]
[1750724668768,1.3176,2407.5,2407.3,4.03797]
[1750724669365,1.3176,2407.5,2407.3,3.2078]
[1750724669565,1.3176,2407.5,2407.3,4.03797]
[1750724670172,1.3176,2407.5,2407.4,0.83015]
[1750724670670,1.3176,2407.5,2407.3,4.03797]
[1750724670872,2.14772,2407.5,2407.3,3.2078]
[1750724671073,0.83015,2407.4,2407.3,3.2078]
[1750724671368,2.14773,2407.5,2407.2,8.11621]
[1750724671574,1.3176,2407.5,2407.2,8.11621]
[1750724671773,2.14772,2407.5,2407.2,8.11621]
[1750724672975,2.14772,2407.5,2407.2,7.286]
[1750724673171,0.83015,2407.4,2407.2,7.286]
[1750724673378,2.19635,2407.4,2407.2,7.286]
[1750724673673,1.3662,2407.4,2407.2,8.11622]
[1750724673875,1.3662,2407.4,2407.2,7.286]
[1750724674268,2.19636,2407.4,2407.2,7.286]
[1750724674469,1.3662,2407.4,2407.2,7.286]
[1750724674964,2.19637,2407.4,2407.2,7.286]
[1750724675366,2.19637,2407.4,2407.2,7.3497515]
[1750724675578,1.3662,2407.4,2407.2,8.1799615]
[1750724675771,0.8301,2407.6,2407.3,0.83018]
[1750724676074,2.1658,2407.6,2407.3,0.83018]
[1750724676464,2.0658,2407.8,2407.4,3.2078]
[1750724676670,2.89584,2407.8,2407.6,0.83007]
[1750724676865,2.16567,2408.0,2407.7,4.03783]
[1750724677072,0.82998,2407.9,2407.7,4.03783]
[1750724677665,1.3357,2408.0,2407.7,3.2078]
[1750724677871,1.3357,2408.0,2407.3,1.047]
[1750724678076,0.83013,2407.5,2407.3,1.047]
[1750724678372,0.83009,2407.6,2407.3,1.87717]
[1750724678573,0.83006,2407.7,2407.4,8.11515]
[1750724678773,1.3357,2408.0,2407.4,7.285]
[1750724679075,0.83007,2407.7,2407.5,3.2078]
[1750724680174,1.3357,2408.0,2407.5,3.2078]
[1750724680175,0.83,2407.9,2407.5,3.2078]
[1750724680580,0.83,2407.9,2407.6,0.83008]
[1750724680782,0.83002,2407.8,2407.6,0.83008]
[1750724680985,1.3357,2408.0,2407.5,4.0379]
[1750724681479,1.3357,2408.0,2407.5,3.2078]
[1750724681677,0.83004,2407.8,2407.5,4.0379]
[1750724681879,1.3357,2408.0,2407.4,11.9287957]
[1750724681880,0.8301,2407.6,2407.4,0.83015]
[1750724682383,3.41057,2408.0,2407.5,4.0379]
[1750724682384,0.83002,2407.8,2407.5,4.0379]
[1750724682578,0.83002,2407.8,2407.3,13.7719757]
[1750724682579,3.2078,2407.8,2407.3,13.7719757]
[1750724682779,0.8301,2407.6,2407.3,13.7719757]
[1750724683083,0.8301,2407.6,2407.4,0.83014]
[1750724683281,0.83012,2407.5,2407.3,13.7719557]
[1750724683879,0.83015,2407.4,2407.3,8.298]
[1750724684079,0.83013,2407.5,2407.3,8.298]
[1750724684281,0.83013,2407.5,2407.3,9.12817]
[1750724684677,0.83015,2407.4,2407.3,9.12817]
[1750724685183,0.83013,2407.5,2407.3,9.12818]
[1750724685481,0.83013,2407.5,2407.4,0.83015]
[1750724685681,0.83013,2407.5,2407.3,9.12817]
[1750724686181,3.21146,2407.7,2407.5,0.8301]
[1750724686379,0.83008,2407.6,2407.5,3.2078]
[1750724687178,0.83015,2407.4,2407.3,9.12818]
[1750724687376,0.83014,2407.5,2407.3,9.12818]
[1750724687883,0.83015,2407.5,2407.3,9.12817]
[1750724688084,0.83015,2407.4,2407.3,8.298]
[1750724688281,0.83015,2407.4,2407.3,7.251]
[1750724689182,1.4329,2407.6,2407.2,3.2715515]
[1750724689183,0.83018,2407.3,2407.2,3.2715515]
[1750724689486,2.26308,2407.3,2407.2,10.4588]
[1750724691586,2.26308,2407.3,2407.2,3.2078]
[1750724691891,2.26308,2407.3,2406.9,1.057]
[1750724691892,0.83029,2407.0,2406.9,3.2078]
[1750724692481,0.83032,2406.9,2406.8,7.251]
[1750724694586,2.07573,2407.0,2406.4,1.0549]
[1750724694782,2.07573,2407.0,2406.4,7.251]
[1750724694783,0.83047,2406.5,2406.4,7.251]
[1750724695599,0.8306,2406.1,2406.0,10.4588]
[1750724697286,2.1459,2406.1,2406.0,10.4588]
[1750724698291,2.1459,2406.1,2406.0,3.2078]
[1750724698797,1.3153,2406.1,2405.7,10.4598]
[1750724698997,0.8307,2405.8,2405.7,10.4598]
[1750724699994,0.8307,2405.8,2405.7,7.252]
[1750724700398,0.83081,2405.5,2405.4,11.4639]
[1750724700699,0.83079,2405.6,2405.4,10.4608]
[1750724700892,0.83081,2405.5,2405.4,10.4608]
[1750724701087,2.24309,2405.6,2405.4,10.4608]
[1750724701688,0.83073,2405.8,2405.5,0.83081]
[1750724701894,0.83073,2405.8,2405.4,10.4608]
[1750724701895,3.25255,2406.0,2405.8,0.8307]
[1750724702093,0.83065,2406.0,2405.8,0.8307]
[1750724702293,0.83065,2406.0,2405.8,1.8539]
[1750724702499,0.83067,2405.9,2405.8,1.0232]
[1750724702702,0.83081,2405.5,2405.4,10.4608]
[1750724703501,0.83079,2405.6,2405.4,10.4608]
[1750724703700,0.83079,2405.6,2405.4,11.29163]
[1750724703904,2.94435,2405.7,2405.4,11.29163]
[1750724704202,0.83079,2405.6,2405.4,10.4608]
[1750724704700,0.83079,2405.6,2405.4,10.5245515]
[1750724704899,1.4511,2405.6,2405.5,0.83081]
[1750724705097,2.94436,2405.7,2405.5,0.83081]
[1750724705298,2.1136,2405.7,2405.4,10.5245515]
[1750724705599,2.28189,2405.6,2405.4,10.5245515]
[1750724705798,0.83081,2405.5,2405.4,3.2715515]
[1750724706000,2.28191,2405.5,2405.4,0.0637515]
[1750724707899,1.4511,2405.5,2405.4,0.0637515]
[1750724708097,3.2078,2406.3,2405.4,8.2715515]
[1750724708299,0.8307,2405.9,2405.8,7.8515957]
[1750724708609,2.4,2406.2,2405.8,7.8515957]
[1750724708997,2.4,2406.2,2406.0,0.83061]
[1750724709299,2.4,2406.2,2405.8,7.8515957]
[1750724709300,0.8305,2406.4,2406.1,15.9371757]
[1750724709497,0.83048,2406.5,2406.2,9.08546]
[1750724709701,0.83045,2406.6,2406.2,9.08546]
[1750724710305,0.83045,2406.6,2406.3,0.83052]
[1750724710499,2.16271,2406.7,2406.3,0.83053]
[1750724711105,0.83043,2406.6,2406.3,0.83053]
[1750724712398,0.83046,2406.5,2406.2,10.11554]
[1750724713198,0.83046,2406.5,2406.2,9.285]
[1750724713404,0.83044,2406.6,2406.3,0.83053]
[1750724713602,0.83046,2406.5,2406.2,10.11554]
[1750724713801,0.83046,2406.5,2406.3,0.83053]
[1750724714004,0.83044,2406.6,2406.3,0.83053]
[1750724714505,0.83046,2406.5,2406.3,0.83053]
[1750724714701,1.3323,2406.7,2406.2,9.285]
[1750724714702,2.16271,2406.7,2406.4,4.03829]
[1750724714905,1.0094,2406.9,2406.4,4.03829]
[1750724715101,0.83042,2406.7,2406.4,4.03829]
[1750724715302,1.0094,2406.9,2406.5,0.83046]
[1750724715504,10.4268,2407.2,2406.7,7.8515957]
[1750724715505,0.9976,2407.2,2406.7,7.8515957]
[1750724715708,0.83025,2407.1,2406.8,8.04936]
[1750724715904,0.83032,2406.9,2406.8,8.3001]
[1750724716905,0.8303,2407.0,2406.8,8.3001]
[1750724717208,0.83029,2407.0,2406.8,8.3001]
[1750724717403,0.83032,2406.9,2406.8,8.3001]
[1750724718507,2.23097,2407.1,2406.8,9.13042]
[1750724718704,0.83027,2407.1,2406.8,9.13042]
[1750724719099,0.9976,2407.2,2406.8,8.3001]
[1750724719100,0.83032,2406.9,2406.8,8.3001]
[1750724719508,0.83031,2407.0,2406.8,8.3001]
[1750724719708,0.83032,2406.9,2406.8,8.3001]
[1750724721002,0.83032,2406.9,2406.8,8.3638515]
[1750724721207,0.83032,2406.9,2406.8,7.2827515]
[1750724721601,0.83032,2406.9,2406.8,0.0637515]
[1750724721602,5.83032,2406.9,2406.8,0.0637515]
[1750724721807,10.41752,2406.9,2406.8,0.0637515]
[1750724722304,11.52132656,2406.9,2406.8,0.0637515]
[1750724724505,6.52132656,2406.9,2406.8,0.0637515]
[1750724726813,5.41752,2406.9,2406.8,0.0637515]
[1750724727511,6.52117004,2406.9,2406.8,0.0637515]
[1750724728715,2.07591,2406.8,2406.1,10.4258]
[1750724728911,3.2078,2406.6,2406.1,10.4258]
[1750724729118,0.83052,2406.4,2406.1,8.04859]
[1750724729318,0.83052,2406.4,2406.1,11.25639]
[1750724729616,0.83054,2406.3,2406.1,11.25639]
[1750724729809,2.23422,2406.4,2406.1,11.25639]
[1750724731016,0.83053,2406.3,2406.1,11.25639]
[1750724731213,1.4037,2406.3,2406.1,11.25639]
[1750724731418,2.23423,2406.3,2406.1,10.4258]
[1750724731717,2.23423,2406.3,2406.1,11.2564]
[1750724732120,2.23423,2406.3,2406.1,10.4258]
[1750724732318,2.23423,2406.3,2406.1,11.2564]
[1750724732614,2.23424,2406.3,2406.1,10.4258]
[1750724732815,3.2078,2406.6,2406.1,10.4258]
[1750724733022,0.83048,2406.5,2406.3,0.83052]
[1750724733219,0.83048,2406.5,2406.1,10.4258]
[1750724733220,0.83044,2406.6,2406.4,4.03828]
[1750724733713,0.83049,2406.4,2406.1,10.4258]
[1750724733918,0.83049,2406.4,2406.2,0.83054]
[1750724734424,0.83049,2406.4,2406.3,0.83053]
[1750724734924,0.83048,2406.5,2406.3,0.83053]
[1750724735420,0.83049,2406.4,2406.2,0.83054]
[1750724736721,0.83048,2406.5,2406.3,0.83053]
[1750724737021,2.4432,2406.8,2406.3,0.83053]
[1750724737224,0.83053,2406.3,2406.1,11.3201215]
[1750724737414,0.83056,2406.2,2406.1,10.4895515]
[1750724738817,2.23616,2406.2,2406.1,10.4895515]
[1750724739925,3.34481677,2406.2,2406.1,10.4895515]
[1750724740225,2.23616,2406.2,2406.1,10.4895515]
[1750724740925,1.4056,2406.2,2406.1,10.4895515]
[1750724741621,2.23616,2406.2,2406.1,10.4895515]
[1750724742824,2.23616,2406.2,2406.1,7.2817515]
[1750724743027,1.4056,2406.2,2406.1,7.2817515]
[1750724743628,3.2078,2406.5,2406.1,3.2715515]
[1750724743926,0.83055,2406.3,2406.1,3.2715515]
[1750724744125,1.10887585,2406.4,2406.1,3.2715515]
[1750724744126,0.83056,2406.2,2406.1,3.2715515]
[1750724744427,2.25376,2406.2,2406.1,3.2715515]
[1750724744616,3.36240429,2406.2,2406.1,3.2715515]
[1750724744818,3.36240429,2406.2,2406.1,0.0637515]
[1750724750928,2.25376,2406.2,2406.1,0.0637515]
[1750724752030,2.46155619,2406.5,2406.1,0.0637515]
[1750724752218,0.83051,2406.4,2406.1,4.1021415]
[1750724752421,1.10915703,2406.2,2406.1,5.1430415]
[1750724752821,1.93971703,2406.2,2406.1,4.3124515]
[1750724753224,1.93971703,2406.2,2406.1,0.0637515]
[1750724753644,2.16226,2406.2,2406.1,0.0637515]
[1750724754026,3.27141703,2406.2,2406.1,0.0637515]
[1750724755030,2.44085703,2406.2,2405.5,3.2078]
[1750724755332,0.83078,2405.6,2405.5,3.2078]
[1750724758436,0.83075,2405.7,2405.5,3.2078]
[1750724758637,0.83077,2405.6,2405.5,3.2078]
[1750724759041,1.3317,2405.9,2405.5,3.2078]
[1750724759239,2.16239,2405.9,2405.6,0.83076]
[1750724759534,0.83074,2405.7,2405.5,8.6823857]
[1750724759736,0.83074,2405.7,2405.5,3.2078]